Cogmind - Beta 13 X1 @@@ ROGUE MODE // 2023.08.31 @ 17:30:12 // Halloween2020/ForbiddenLore Player: Terminus Result: Self-destructed Performance ------------- Evolutions (6) 3000 Regions Visited (13) 2600 Robots Destroyed (108) 540 Value Destroyed (3005) 3005 Prototype IDs (6) 120 Alien Tech Used (0) 0 Bonus (1198) 1198 TOTAL SCORE: 10463 Bonus ------- Pacifist 200 High Alert Combat Kills 226 Follower Combat Kills 572 Network Hubs Disabled 200 Cogmind --------- Core Integrity 1084/1150 Matter 280/300 Energy 315/315 System Corruption 3% Temperature Cool (0) Movement Flying (27) Location -4/Hub_04(d) Parts ------- > --- POWER (1) -------- Neutrino Core > --- PROPULSION (8) --- Improved Flight Unit Improved VTOL Module Nuclear Pulse Array Nuclear Pulse Array Field Propulsion Array > --- UTILITY (8) ------ Advanced Heat Sink Medium Storage Unit Advanced Sensor Array Advanced Signal Interpreter Hardened Medium Armor Plating Hacking Suite Hacking Suite Hacking Suite > --- WEAPON (2) ------- Heavy Pick > --- INVENTORY (10) --- Light Angular Momentum Engine Field Propulsion Array Advanced Melee Analysis Suite Hardened Medium Armor Plating Hacking Suite Heavy Neutron Cannon Minigun Missile Launcher Peak State ------------ > --- POWER ------------ Light Angular Momentum Engine > --- PROPULSION ------- Nuclear Pulse Array Nuclear Pulse Array Nuclear Pulse Array Field Propulsion Array > --- UTILITY ---------- Advanced Heat Sink Medium Storage Unit Advanced Sensor Array Advanced Signal Interpreter Hardened Medium Armor Plating Hacking Suite Hacking Suite Hacking Suite > --- WEAPON ----------- Heavy Neutron Cannon Heavy Pick > --- INVENTORY -------- Light Angular Momentum Engine Neutrino Core Improved Flight Unit Improved VTOL Module Advanced Melee Analysis Suite Hardened Medium Armor Plating Hacking Suite Minigun Minigun Missile Launcher [Rating: 99] Favorites ----------- Power Light Angular Momentum Engine Engine Light Angular Momentum Engine Power Core Neutrino Core Propulsion Improved Treads Treads Improved Treads Flight Unit Nuclear Pulse Array Utility Hacking Suite Device Improved Heat Sink Storage Medium Storage Unit Processor Improved Signal Interpreter Hackware Hacking Suite Protection Improved Light Armor Plating Weapon Minigun Energy Cannon Heavy Neutron Cannon Ballistic Gun Minigun Launcher Missile Launcher Slashing Weapon Power Sword Piercing Weapon Heavy Pick Build | -11 -10 -9 -8 -7 -6 -5 -5 -5 -4 -4 -4 -4 -4 ------- Run | Jun Mat Mat Mat Fac Fac Fac Was Fac Fac Ext Cet Arc Hub Slots Evolved 12 | . . 2 2 2 2 2 . . 2 . . . . Power . | . . . . . . . . . . . . . . Propulsion 6 | . . 1 1 1 1 1 . . 1 . . . . Utility 6 | . . 1 1 1 1 1 . . 1 . . . . Weapon . | . . . . . . . . . . . . . . Parts Attached 105 | 2 6 18 30 14 16 3 . . 10 4 . 1 1 Power 3 | . . 1 1 . . . . . . . . 1 . Engine 2 | . . 1 1 . . . . . . . . . . Core 1 | . . . . . . . . . . . . 1 . Reactor . | . . . . . . . . . . . . . . Propulsion 38 | 2 1 6 11 5 5 1 . . 4 2 . . 1 Treads 17 | 2 1 6 8 . . . . . . . . . . Leg . | . . . . . . . . . . . . . . Wheel . | . . . . . . . . . . . . . . Hover . | . . . . . . . . . . . . . . Flight 21 | . . . 3 5 5 1 . . 4 2 . . 1 Utility 33 | . 1 5 13 2 5 2 . . 3 2 . . . Device 12 | . . 3 4 1 2 1 . . . 1 . . . Storage 1 | . . 1 . . . . . . . . . . . Processor 2 | . . . . 1 . . . . 1 . . . . Hackware 5 | . . . 2 . 2 . . . 1 . . . . Protection 13 | . 1 1 7 . 1 1 . . 1 1 . . . Artifact . | . . . . . . . . . . . . . . Weapon 31 | . 4 6 5 7 6 . . . 3 . . . . Energy Gun . | . . . . . . . . . . . . . . Energy Cannon 2 | . . . . . . . . . 2 . . . . Ballistic Gun 24 | . 4 6 4 7 3 . . . . . . . . Ballistic Cannon . | . . . . . . . . . . . . . . Launcher 1 | . . . 1 . . . . . . . . . . Special Weapon . | . . . . . . . . . . . . . . Impact Weapon . | . . . . . . . . . . . . . . Slashing Weapon 2 | . . . . . 2 . . . . . . . . Piercing Weapon 2 | . . . . . 1 . . . 1 . . . . Special Melee Weapon . | . . . . . . . . . . . . . . Unidentified Prototypes 4 | . . 1 1 1 . . . . 1 . . . . Parts Lost 6 | . . 1 3 . . . . . . 1 . 1 . Power 1 | . . . . . . . . . . . . 1 . Propulsion 2 | . . . 1 . . . . . . 1 . . . Utility 3 | . . 1 2 . . . . . . . . . . Weapon . | . . . . . . . . . . . . . . Highest Loss Streak 1 | . . 1 1 . . . . . . 1 . 1 . To Critical Strikes . | . . . . . . . . . . . . . . Average Slot Usage (%) 92 | . 61 93 99 86 91 88 88 88 82 78 78 78 75 Engine 7 | . . 7 9 7 6 5 5 5 5 5 5 . . Treads 23 | . 28 31 35 . . . . . . . . . . Flight 9 | . . . . 38 34 29 29 29 24 21 26 26 23 Device 10 | . . 16 8 14 12 11 11 11 10 9 10 10 10 Storage 7 | . . 6 9 7 6 5 5 5 5 5 5 5 5 Processor 1 | . . . . 6 6 5 5 5 5 5 5 5 5 Hackware 6 | . . . 4 7 12 11 11 11 15 15 15 15 15 Protection 9 | . 12 8 13 . . 5 5 5 5 5 5 5 5 Ballistic Gun 13 | . 20 22 17 2 4 5 5 5 . . . . . Piercing Weapon 1 | . . . . . 1 5 5 5 5 5 5 5 5 Naked Turns . | . . . . . . . . . . . . . . Heaviest Build 52 | . 3 30 34 21 29 35 35 35 45 52 32 37 37 Greatest Support 91 | 3 3 60 91 25 33 41 41 41 54 54 51 51 51 Greatest Overweight (x) 2 | . . 2 . . . . . . . . . . . Average Overweight (x) . | . . . . . . . . . . . . . . Largest Inventory Capacity 10 | 5 5 10 10 10 10 10 10 10 10 10 10 10 10 Average Capacity 9 | 5 5 7 10 10 10 10 10 10 10 10 10 10 10 Most Carried 10 | . 2 10 10 10 10 10 9 10 10 10 10 10 9 Average Carried 9 | . 1 6 9 8 9 8 9 9 8 9 10 9 9 Final Capacity 10 | 5 5 10 10 10 10 10 10 10 10 10 10 10 10 Final Carried 10 | . 2 10 10 10 10 9 9 10 10 10 10 9 9 Class Distribution -------------------- 49% | Mutant 27% | Hacker-Sprinter 19% | Scavenger-Mutant Dominant Class ---------------- Mutant | -10/Materials Scavenger-Mutant | -9/Materials Mutant | -8/Materials Scavenger-Sprinter | -7/Factory Hacker-Sprinter | -6/Factory Hacker-Sprinter | -5/Factory Hacker-Sprinter | -5/Waste Hacker-Sprinter | -5/Factory Hacker-Sprinter | -4/Factory Hacker-Sprinter | -4/Extension Hacker-Sprinter | -4/Cetus Hacker-Sprinter | -4/Archives Hacker-Sprinter | -4/Hub_04(d) Resources | -11 -10 -9 -8 -7 -6 -5 -5 -5 -4 -4 -4 -4 -4 ----------- Run | Jun Mat Mat Mat Fac Fac Fac Was Fac Fac Ext Cet Arc Hub Matter Collected 3265 | 184 . 756 1820 136 204 . 30 . 100 35 . . . Remotely . | . . . . . . . . . . . . . . Salvage Created 4725 | . . 1108 2653 136 328 24 . 89 189 158 . . 40 Parts 265 | . . 72 140 10 21 4 . 2 10 6 . . . Haulers Intercepted 11 | . . 1 6 2 1 . . 1 . . . . . Recyclers Shooed 2 | . . . 2 . . . . . . . . . . Parts Field Recycled . | . . . . . . . . . . . . . . Retrieved Matter . | . . . . . . . . . . . . . . Parts Self-Destructed . | . . . . . . . . . . . . . . Prevented . | . . . . . . . . . . . . . . Kills | -11 -10 -9 -8 -7 -6 -5 -5 -5 -4 -4 -4 -4 -4 ------- Run | Jun Mat Mat Mat Fac Fac Fac Was Fac Fac Ext Cet Arc Hub Combat Hostiles Destroyed 66 | . . 24 40 . . . . . . 2 . . . Melee 2 | . . . . . . . . . . 2 . . . Guns 64 | . . 24 40 . . . . . . . . . . Classes Destroyed 13 | . . 8 5 . . . . . . . . . . Worker 7 | . . 1 4 . 1 . . . . . . . 1 Builder 2 | . . . 1 . . . . . . . . . 1 Tunneler 1 | . . . 1 . . . . . . . . . . Hauler 11 | . . 1 6 2 1 . . 1 . . . . . Recycler 7 | . . 2 3 . 1 . . . 1 . . . . Operator 8 | . . 2 5 1 . . . . . . . . . Watcher 8 | . . . 3 . 3 1 . . 1 . . . . Swarmer 13 | . . 6 7 . . . . . . . . . . Grunt 36 | . . 12 23 . . . . . . 1 . . . Brawler 2 | . . 1 1 . . . . . . . . . . Sentry 11 | . . 5 5 . . . . . . 1 . . . Specialist 2 | . . . 2 . . . . . . . . . . Hunter 2 | . . . 2 . . . . . . . . . . Best Kill Streak 5 | . . 5 5 2 2 1 . 1 1 1 . . 2 Combat Bots Only 5 | . . 5 5 . . . . . . 1 . . . Max Kills in Single Turn 2 | . . 2 2 1 1 1 . 1 1 1 . . 2 Gunslinging 1 | . . 1 1 . . . . . . . . . . Exploded . | . . . . . . . . . . . . . . Melee 1 | . . . . . . . . . . 1 . . . Uniques/NPCs Destroyed . | . . . . . . . . . . . . . . Combat | -11 -10 -9 -8 -7 -6 -5 -5 -5 -4 -4 -4 -4 -4 -------- Run | Jun Mat Mat Mat Fac Fac Fac Was Fac Fac Ext Cet Arc Hub Damage Taken 3708 | . 142 691 1763 48 109 . . 155 23 516 98 55 108 Core 320 | . 29 63 162 . . . . . . 40 26 . . Absorbed by Shields 25 | . . . . . . . . . . 25 . . . Redirected to Shielding 8 | . 6 2 . . . . . . . . . . . Regen/Repaired (Parts) 455 | . . 20 255 . . . 22 . 158 . . . . Core Remaining (%) 91 | 100 88 84 70 100 100 . . 100 . . . . . Volleys Fired 269 | . 4 69 183 7 . . . . . 6 . . . Largest 2 | . 2 2 2 2 . . . . . 1 . . . Hottest 110 | . 40 50 50 50 . . . . . 110 . . . Shots Fired 525 | . 6 138 365 10 . . . . . 6 . . . Gun 518 | . 6 138 364 10 . . . . . . . . . Cannon 6 | . . . . . . . . . . 6 . . . Launcher 1 | . . . 1 . . . . . . . . . . Special . | . . . . . . . . . . . . . . Kinetic 518 | . 6 138 364 10 . . . . . . . . . Thermal 6 | . . . . . . . . . . 6 . . . Explosive 1 | . . . 1 . . . . . . . . . . Electromagnetic . | . . . . . . . . . . . . . . Robot Hit Streak 22 | . 5 15 22 6 . . . . . 2 . . . Robot Miss Streak 5 | . 1 5 5 1 . . . . . 2 . . . Penetration Max . | . . . . . . . . . . . . . . Secondary Targets 10 | . . 5 5 . . . . . . . . . . Max Gunslinging Chain 1 | . . 1 1 . . . . . . . . . . Shots Hit Robots 368 | . 5 85 242 7 11 1 . 6 4 7 . . . Core Hits 169 | . 1 43 104 4 5 1 . 2 2 3 . . 4 Critical Kills 2 | . . 2 . . . . . . . . . . . Critical Parts Destroyed . | . . . . . . . . . . . . . . Critical Strikes 8 | . . 2 . . 1 . . 3 1 1 . . . Destroy 2 | . . 2 . . . . . . . . . . . Sever 1 | . . . . . 1 . . . . . . . . Impale 5 | . . . . . . . . 3 1 1 . . . Melee Attacks 52 | . . . . . 24 3 . 8 8 8 . . 1 Impact . | . . . . . . . . . . . . . . Slashing 20 | . . . . . 20 . . . . . . . . Piercing 32 | . . . . . 4 3 . 8 8 8 . . 1 Sneak Attacks 8 | . . . . . 6 . . 1 1 . . . . Combat Hostiles . | . . . . . . . . . . . . . . Follow-up Attacks . | . . . . . . . . . . . . . . Damage Inflicted 7806 | . 40 1445 4261 124 742 48 . 264 200 270 . . 412 Guns 5800 | . 40 1429 4207 124 . . . . . . . . . Cannons 123 | . . . . . . . . . . 123 . . . Explosions 433 | . . . 21 . . . . . . . . . 412 Melee 1401 | . . . . . 742 48 . 264 200 147 . . . Ramming 49 | . . 16 33 . . . . . . . . . . Kinetic 5800 | . 40 1429 4207 124 . . . . . . . . . Thermal 123 | . . . . . . . . . . 123 . . . Explosive 21 | . . . 21 . . . . . . . . . . Electromagnetic 412 | . . . . . . . . . . . . . 412 Impact . | . . . . . . . . . . . . . . Slashing 688 | . . . . . 688 . . . . . . . . Piercing 713 | . . . . . 54 48 . 264 200 147 . . . Highest Corruption 4 | . 3 . 4 . . . . . . . . . 3 Average Corruption 3 | . 2 . 4 . . . . . . . . . 3 Corruption Purged . | . . . . . . . . . . . . . . Corruption Blocked . | . . . . . . . . . . . . . . Effects 3 | . . . 3 . . . . . . . . . . Matter Fused 2 | . . . 2 . . . . . . . . . . Alerts 1 | . . . 1 . . . . . . . . . . Overload Shots . | . . . . . . . . . . . . . . Overflow Damage 270 | . . . . . 127 . . 60 19 13 . . 51 Projectiles 13 | . . . . . . . . . . 13 . . . Explosions 51 | . . . . . . . . . . . . . 51 Melee 206 | . . . . . 127 . . 60 19 . . . . Knockbacks . | . . . . . . . . . . . . . . Impact . | . . . . . . . . . . . . . . Kinetic . | . . . . . . . . . . . . . . Secondary . | . . . . . . . . . . . . . . Self-Inflicted Damage 109 | . . . . . . . . . . . . . 109 Shots 1 | . . . . . . . . . . . . . 1 Rammed 10 | . 1 5 4 . . . . . . . . . . Targets Rammed 13 | . 1 6 6 . . . . . . . . . . Kicked . | . . . . . . . . . . . . . . Crushed 3 | . . 1 2 . . . . . . . . . . Highest Temperature 88 | . 4 39 58 . . . . . . 88 . . . Average Temperature 15 | . 2 11 11 . . . . . . 34 . . . Received Heat Transfer 1410 | . 78 285 864 18 12 . . 18 9 108 9 9 . Siege Activations . | . . . . . . . . . . . . . . Robots Corrupted . | . . . . . . . . . . . . . . Combat Hostiles . | . . . . . . . . . . . . . . Parts Fried 4 | . . . . . . . . . . . . . 4 Impact Corruptions . | . . . . . . . . . . . . . . Robots Melted . | . . . . . . . . . . . . . . Combat Hostiles . | . . . . . . . . . . . . . . Parts Melted . | . . . . . . . . . . . . . . Heat Transferred . | . . . . . . . . . . . . . . Parts Sabotaged . | . . . . . . . . . . . . . . Parts Stolen . | . . . . . . . . . . . . . . Parts Stripped . | . . . . . . . . . . . . . . Power Chain Reactions . | . . . . . . . . . . . . . . Missiles Intercepted . | . . . . . . . . . . . . . . Alert | -11 -10 -9 -8 -7 -6 -5 -5 -5 -4 -4 -4 -4 -4 ------- Run | Jun Mat Mat Mat Fac Fac Fac Was Fac Fac Ext Cet Arc Hub Peak Influence 616 | . 171 574 616 431 442 181 184 561 320 432 240 138 345 Initial 274 | . . 72 202 215 210 95 63 128 274 156 225 88 48 Average 300 | . 57 318 322 282 298 136 149 347 286 294 227 114 86 Maximum Alert Level 2 | . . 2 2 2 2 . . 2 1 2 1 . 1 Low Security (%) 27 | 100 100 23 26 . 12 100 100 39 . 24 . 100 86 Level 1 44 | . . 41 43 87 63 . . 16 100 39 100 . 13 Level 2 28 | . . 35 30 12 23 . . 44 . 35 . . . Level 3 . | . . . . . . . . . . . . . . Level 4 . | . . . . . . . . . . . . . . Level 5 . | . . . . . . . . . . . . . . High Security . | . . . . . . . . . . . . . . Max Security . | . . . . . . . . . . . . . . Squads Dispatched 36 | . 2 5 9 2 6 1 . 7 1 1 . . 2 Investigation 18 | . 2 2 3 . 4 1 . 5 . 1 . . . Extermination 1 | . . . . . 1 . . . . . . . . Reinforcement 14 | . . 2 6 2 1 . . . 1 . . . 2 Assault 1 | . . 1 . . . . . . . . . . . Garrison 2 | . . . . . . . . 2 . . . . . Intercept . | . . . . . . . . . . . . . . Searches Triggered 1 | . . . . . 1 . . . . . . . . Construction Impeded 1 | . . . . . . . . . . . . . 1 Haulers Reinforced . | . . . . . . . . . . . . . . Active Scanning Responses . | . . . . . . . . . . . . . . Cargo Convoy Interrupts . | . . . . . . . . . . . . . . Stealth | -11 -10 -9 -8 -7 -6 -5 -5 -5 -4 -4 -4 -4 -4 --------- Run | Jun Mat Mat Mat Fac Fac Fac Was Fac Fac Ext Cet Arc Hub Distress Signals 17 | . . . 4 3 . 1 . 2 . 6 1 . . Communications Jammed . | . . . . . . . . . . . . . . Distress Signals . | . . . . . . . . . . . . . . Times Spotted 191 | . 11 32 61 13 17 1 3 13 2 29 5 4 . Peak Tracking Total 17 | . 10 5 5 9 6 1 3 7 1 17 5 4 1 Tactical Retreats 22 | . 1 2 4 3 2 . 1 1 . 7 1 . . Traps | -11 -10 -9 -8 -7 -6 -5 -5 -5 -4 -4 -4 -4 -4 ------- Run | Jun Mat Mat Mat Fac Fac Fac Was Fac Fac Ext Cet Arc Hub Traps Triggered 9 | . 3 1 1 . 1 1 . . . 2 . . . Indirectly . | . . . . . . . . . . . . . . Trap Hack Attempts . | . . . . . . . . . . . . . . Triggered . | . . . . . . . . . . . . . . Disarmed 6 | . . . . . . . . . . 6 . . . Reprogrammed . | . . . . . . . . . . . . . . Reused . | . . . . . . . . . . . . . . Traps Extracted . | . . . . . . . . . . . . . . Installed . | . . . . . . . . . . . . . . Triggered . | . . . . . . . . . . . . . . Machines | -11 -10 -9 -8 -7 -6 -5 -5 -5 -4 -4 -4 -4 -4 ---------- Run | Jun Mat Mat Mat Fac Fac Fac Was Fac Fac Ext Cet Arc Hub Machines Disabled 11 | . . . 2 . . . . 1 . 1 . . 7 Max in Single Turn 7 | . . . 1 . . . . . . . . . 7 Garrison Access 1 | . . . 1 . . . . . . . . . . Network Hub 1 | . . . . . . . . . . . . . 1 Machines Repaired . | . . . . . . . . . . . . . . Machines Sabotaged . | . . . . . . . . . . . . . . Overloaded Fab Kills . | . . . . . . . . . . . . . . Hacking | -11 -10 -9 -8 -7 -6 -5 -5 -5 -4 -4 -4 -4 -4 --------- Run | Jun Mat Mat Mat Fac Fac Fac Was Fac Fac Ext Cet Arc Hub Machines Accessed 67 | . 5 6 14 6 10 2 . 6 8 8 1 . 1 Terminals 50 | . 3 5 9 4 8 1 . 4 6 8 1 . 1 Fabricators 6 | . . . . 2 2 . . 1 1 . . . . Repair Stations 4 | . . 1 2 . . . . . 1 . . . . Recycling Units 4 | . 2 . 1 . . . . 1 . . . . . Scanalyzers 1 | . . . 1 . . . . . . . . . . Garrison Access 2 | . . . 1 . . 1 . . . . . . . Total Hacks 173 | . 9 15 35 13 28 4 . 18 20 28 2 . 1 Successful 108 | . 4 9 26 6 17 1 . 10 13 20 1 . 1 Failed 65 | . 5 6 9 7 11 3 . 8 7 8 1 . . Catastrophic 8 | . . . 3 . 1 1 . 3 . . . . . Database Lockouts . | . . . . . . . . . . . . . . Manual 117 | . 9 8 23 9 18 4 . 10 14 21 1 . . Terminals 140 | . 7 12 26 10 20 3 . 15 16 28 2 . 1 Fabricators 15 | . . . . 3 8 . . 2 2 . . . . Repair Stations 10 | . . 3 5 . . . . . 2 . . . . Recycling Units 4 | . 2 . 1 . . . . 1 . . . . . Scanalyzers 2 | . . . 2 . . . . . . . . . . Garrison Access 2 | . . . 1 . . 1 . . . . . . . Terminal Hacks 42 | . 1 1 12 2 4 . . 5 4 11 1 . 1 Prototype ID Bank 1 | . . . . . . . . 1 . . . . . Open Door 2 | . . . . . . . . . . 1 1 . . Level Access Points 3 | . . . . 1 1 . . 1 . . . . . Branch Access Points 4 | . . . 1 . 1 . . 1 1 . . . . Terminal Index 6 | . 1 1 1 . . . . 1 1 1 . . . Alert Level 3 | . . . 1 . . . . . . 2 . . . Unreport Threat 5 | . . . 3 . . . . . . 2 . . . Locate Traps 1 | . . . . . . . . . . 1 . . . Disarm Traps 1 | . . . . . . . . . . 1 . . . Transport Status 2 | . . . 2 . . . . . . . . . . Hauler Manifests 5 | . . . 2 1 1 . . . 1 . . . . Zone Layout 9 | . . . 2 . 1 . . 1 1 3 . . 1 Fabricator Hacks 11 | . . . . 2 6 . . 2 1 . . . . Network Status 4 | . . . . 1 1 . . 1 1 . . . . Load Schematic 4 | . . . . 1 2 . . 1 . . . . . Build 3 | . . . . . 3 . . . . . . . . Repair Station Hacks 9 | . . 3 4 . . . . . 2 . . . . Scan Component 5 | . . 2 2 . . . . . 1 . . . . Repair 4 | . . 1 2 . . . . . 1 . . . . Recycling Unit Hacks . | . . . . . . . . . . . . . . Scanalyzer 2 | . . . 2 . . . . . . . . . . Insert Component 1 | . . . 1 . . . . . . . . . . Analyze 1 | . . . 1 . . . . . . . . . . Garrison Access Hacks 1 | . . . 1 . . . . . . . . . . Seal Access 1 | . . . 1 . . . . . . . . . . Unauthorized Hacks 43 | . 3 5 7 2 7 1 . 3 6 9 . . . Terminals 37 | . 1 5 6 2 6 . . 2 6 9 . . . Track 1 | . . . 1 . . . . . . . . . . Assimilate 6 | . . . . 1 3 . . 1 . 1 . . . Botnet 25 | . 1 4 5 1 3 . . 1 5 5 . . . Disrupt 2 | . . . . . . . . . . 2 . . . Operators 3 | . . 1 . . . . . . 1 1 . . . Fabricators 1 | . . . . . 1 . . . . . . . . Prioritize 1 | . . . . . 1 . . . . . . . . Repair Stations . | . . . . . . . . . . . . . . Recycling Units 4 | . 2 . 1 . . . . 1 . . . . . Tunnel 4 | . 2 . 1 . . . . 1 . . . . . Scanalyzers . | . . . . . . . . . . . . . . Garrison Access 1 | . . . . . . 1 . . . . . . . Eject 1 | . . . . . . 1 . . . . . . . Data Cores Recovered 1 | . . . 1 . . . . . . . . . . Used 1 | . . . 1 . . . . . . . . . . Hacking Detections 50 | . 3 5 9 6 8 1 . 5 7 5 1 . . Full Trace Events 11 | . . 1 1 . 4 . . 4 . 1 . . . Feedback Events . | . . . . . . . . . . . . . . Feedback Blocked . | . . . . . . . . . . . . . . Robot Schematics Acquired . | . . . . . . . . . . . . . . Robots Built . | . . . . . . . . . . . . . . Authchips . | . . . . . . . . . . . . . . Time . | . . . . . . . . . . . . . . Total Robot Build Rating . | . . . . . . . . . . . . . . Part Schematics Acquired 1 | . . . 1 . . . . . . . . . . Parts Built 4 | . . . . . 4 . . . . . . . . Authchips . | . . . . . . . . . . . . . . Time 107 | . . . . . 107 . . . . . . . . Total Part Build Rating 18 | . . . . . 18 . . . . . . . . Parts Repaired 4 | . . 1 2 . . . . . 1 . . . . Time 118 | . . 26 54 . . . . . 38 . . . . Parts Recycled . | . . . . . . . . . . . . . . Recycled Matter . | . . . . . . . . . . . . . . Retrieved Matter . | . . . . . . . . . . . . . . Retrieved Components . | . . . . . . . . . . . . . . Parts Scanalyzed 1 | . . . 1 . . . . . . . . . . Part Schematics Acquired 1 | . . . 1 . . . . . . . . . . Parts Damaged . | . . . . . . . . . . . . . . Bothacking | -11 -10 -9 -8 -7 -6 -5 -5 -5 -4 -4 -4 -4 -4 ------------ Run | Jun Mat Mat Mat Fac Fac Fac Was Fac Fac Ext Cet Arc Hub Used RIF Installer . | . . . . . . . . . . . . . . Robots Hacked . | . . . . . . . . . . . . . . Non-combat . | . . . . . . . . . . . . . . Combat . | . . . . . . . . . . . . . . Robot Hacks Applied . | . . . . . . . . . . . . . . Relay Couplers Released 3 | . . . . . . 3 . . . . . . . Ejected 3 | . . . . . . 3 . . . . . . . Fabnet Peak Effective % . | . . . . . . . . . . . . . . Robots Rewired 12 | . . . . 2 1 . . . . 9 . . . Allies Hacked 1 | . . . . . 1 . . . . . . . . Hacks Repelled . | . . . . . . . . . . . . . . Allies | -11 -10 -9 -8 -7 -6 -5 -5 -5 -4 -4 -4 -4 -4 -------- Run | Jun Mat Mat Mat Fac Fac Fac Was Fac Fac Ext Cet Arc Hub Total Allies 34 | . . . . 3 2 . 18 1 . 10 . . . Largest Group 18 | . . . . 2 1 . 18 12 . 6 4 . . Highest-Rated Group 638 | . . . . 44 41 . 638 487 . 369 256 . . Highest-Rated Ally 159 | . . . . 32 41 . 50 50 . 159 143 . . Total Orders . | . . . . . . . . . . . . . . Ally Attacks 218 | . . . . 14 5 . 116 28 . 45 10 . . Total Damage 8949 | . . . . 220 184 . 5241 1286 . 1767 251 . . Kills 33 | . . . . . 1 . 10 8 . 14 . . . Allies Corrupted 1 | . . . . . 1 . . . . . . . . Allies Melted 1 | . . . . . 1 . . . . . . . . Intel | -11 -10 -9 -8 -7 -6 -5 -5 -5 -4 -4 -4 -4 -4 ------- Run | Jun Mat Mat Mat Fac Fac Fac Was Fac Fac Ext Cet Arc Hub Robot Analysis Total . | . . . . . . . . . . . . . . Derelict Logs Recovered . | . . . . . . . . . . . . . . Drone Launches . | . . . . . . . . . . . . . . Drone Recoveries . | . . . . . . . . . . . . . . Exploration | -11 -10 -9 -8 -7 -6 -5 -5 -5 -4 -4 -4 -4 -4 ------------- Run | Jun Mat Mat Mat Fac Fac Fac Was Fac Fac Ext Cet Arc Hub Turns Passed 5926 | 17 153 874 2990 231 459 76 100 159 146 652 34 12 23 Spaces Moved 5978 | 29 259 403 1276 695 1190 225 148 440 335 761 111 40 66 Core 408 | 29 259 120 . . . . . . . . . . . Treads 1559 | . . 283 1276 . . . . . . . . . . Legs . | . . . . . . . . . . . . . . Wheels . | . . . . . . . . . . . . . . Hover . | . . . . . . . . . . . . . . Flight 4011 | . . . . 695 1190 225 148 440 335 761 111 40 66 Fastest Speed 22 | 50 50 50 152 25 22 27 27 27 27 27 27 27 27 Average Speed 64 | 50 50 153 156 25 25 27 27 27 28 29 27 27 27 Slowest Speed 160 | 50 50 160 160 25 27 27 27 27 31 31 27 27 27 Overloaded Moves . | . . . . . . . . . . . . . . Propulsion Burnouts . | . . . . . . . . . . . . . . Robots Hopped 70 | . . . . 19 12 . . 5 1 32 1 . . Cave-ins Triggered . | . . . . . . . . . . . . . . Exploration Rate (%) 40 | 3 51 49 78 25 33 10 84 17 10 87 58 57 11 Regions Visited 13 Branch Regions 4 Pre-discovered Areas 4 | . 2 . 1 . . . . 1 . . . . . Known Exits Taken 7 | . . . . 1 1 . . 1 1 1 1 1 . Unknown Exits Taken 4 | 1 1 1 1 . . . . . . . . . . Scrap Searched . | . . . . . . . . . . . . . . Spaces Dug 15 | . . . . . 9 2 . 2 2 . . . . Terrain Destroyed 183 | . . . 9 . 9 2 . 2 2 2 . . 157 Melee 15 | . . . . . 9 2 . 2 2 . . . . Projectile 3 | . . . 1 . . . . . . 2 . . . AOE 165 | . . . 8 . . . . . . . . . 157 Terrain Rammed . | . . . . . . . . . . . . . . Walls Destroyed . | . . . . . . . . . . . . . . Machines Disabled . | . . . . . . . . . . . . . . Actions | -11 -10 -9 -8 -7 -6 -5 -5 -5 -4 -4 -4 -4 -4 --------- Run | Jun Mat Mat Mat Fac Fac Fac Was Fac Fac Ext Cet Arc Hub Total 7475 | 30 273 545 1983 729 1300 234 207 455 368 1129 113 40 69 Wait 944 | . 2 30 453 4 50 . 60 11 8 322 4 . . Move 5839 | 28 258 402 1275 659 1166 225 147 429 332 705 108 39 66 Hop 57 | . . . . 16 11 . . 5 1 23 1 . . Pick Up 36 | . 2 10 11 3 5 1 . 1 2 1 . . . Fast Attach 34 | 2 6 5 8 2 5 . . . 5 . . . 1 Attach 31 | . . 2 3 11 7 2 . . 3 2 . 1 . Detach 17 | . . . . 9 4 1 . . 2 1 . . . Swap 40 | . . 11 19 1 4 1 . . 2 2 . . . Drop 59 | . . 10 25 5 10 1 . 1 5 1 . . 1 Fire 269 | . 4 69 183 7 . . . . . 6 . . . Melee 52 | . . . . . 24 3 . 8 8 8 . . 1 Ram . | . . . . . . . . . . . . . . Kick . | . . . . . . . . . . . . . . Crush 13 | . 1 6 6 . . . . . . . . . . Escape Stasis 20 | . . . . . . . . . . 20 . . . Rewire 64 | . . . . 12 14 . . . . 38 . . . Trap . | . . . . . . . . . . . . . . Miscellaneous . | . . . . . . . . . . . . . . Route ------- -11/Junkyard -10/Materials -9/Materials (discovered 2 exits: *Mat / [*Min]) -8/Materials (discovered 2 exits: *Fac x2) -7/Factory (discovered 5 exits: *Fac x4 / *Low) -6/Factory (discovered 6 exits: *Fac x4 / *Low x2) -5/Factory -5/Waste -5/Factory (discovered 6 exits: *Fac x4 / *Upp x2) -4/Factory (discovered 6 exits: Res / Upp x2 / *Ext x2 / Arm) -4/Extension (discovered 2 exits: *Res / *Cet) -4/Cetus -4/Archives -4/Hub_04(d) History --------- Turn | Location | Event 3 | -11/Junkyard | Discovered new exit (range 16) 18 | -11/Junkyard | Entered Materials 165 | -10/Materials | Discovered new exit (range 11) 171 | -10/Materials | Entered another Materials area 171 | -9/Materials | Evolved 2 slots: Propulsion x1, Utility x1 387 | -9/Materials | Repaired Heat Sink? 510 | -9/Materials | Discovered new exit (range 16) 704 | -9/Materials | Build established: Scavenger-Mutant 924 | -9/Materials | Discovered new exit (range 3) 971 | -9/Materials | First assault squad dispatched 1045 | -9/Materials | Entered another Materials area 1045 | -8/Materials | Evolved 2 slots: Propulsion x1, Utility x1 1554 | -8/Materials | Build established: Mutant 2138 | -8/Materials | Discovered new exit (range 4) 2819 | -8/Materials | Repaired Imp. Light Armor Plating 3067 | -8/Materials | Discovered new exit (range 3) 3138 | -8/Materials | Repaired Imp. Treads 4035 | -8/Materials | Entered Factory 4035 | -7/Factory | Evolved 2 slots: Propulsion x1, Utility x1 4057 | -7/Factory | Discovered new exit (range 9) 4059 | -7/Factory | Identified exit to Lower Caves 4201 | -7/Factory | Identified exit to Factory 4266 | -7/Factory | Entered another Factory area 4266 | -6/Factory | Evolved 2 slots: Propulsion x1, Utility x1 4350 | -6/Factory | Fabricated Nuclear Pulse Array? 4381 | -6/Factory | Fabricated Hacking Suite (x1) 4445 | -6/Factory | Fabricated Hacking Suite? 4485 | -6/Factory | Identified exit to Lower Caves 4587 | -6/Factory | Identified exit to Factory 4616 | -6/Factory | Search patrols dispatched 4661 | -6/Factory | Build established: Hacker-Sprinter 4714 | -6/Factory | Spotted B-75 Beast 4725 | -6/Factory | Entered another Factory area 4725 | -5/Factory | Evolved 2 slots: Propulsion x1, Utility x1 4801 | -5/Factory | Manually triggered Chute Trap 4801 | -5/Factory | Sucked down chute 4801 | -5/Factory | Entered Waste 4804 | -5/Waste | Spotted C-40 Crusher 4805 | -5/Waste | Spotted C-40 Crusher 4808 | -5/Waste | Spotted C-40 Crusher 4816 | -5/Waste | Spotted C-40 Crusher 4816 | -5/Waste | Spotted C-40 Crusher 4819 | -5/Waste | Discovered new exit (range 11) 4823 | -5/Waste | Warlord forces began an assault 4847 | -5/Waste | Allies destroyed C-40 Crusher 4852 | -5/Waste | Identified exit to Factory 4866 | -5/Waste | Allies destroyed C-40 Crusher 4874 | -5/Waste | Allies destroyed C-40 Crusher 4901 | -5/Waste | Entered Factory 4901 | -5/Factory | Accompanied by 12 allies 4956 | -5/Factory | Garrison activated, responded to threat 4980 | -5/Factory | Discovered new exit (range 12) 4983 | -5/Factory | Identified exit to Upper Caves 4997 | -5/Factory | Identified exit to Factory 5021 | -5/Factory | Spotted B-75 Beast 5060 | -5/Factory | Entered another Factory area 5060 | -4/Factory | Evolved 2 slots: Propulsion x1, Utility x1 5070 | -4/Factory | Identified exit to Upper Caves 5070 | -4/Factory | Identified exit to Extension 5070 | -4/Factory | Identified exit to Armory 5133 | -4/Factory | Repaired Hrd. Medium Armor Plating 5194 | -4/Factory | Discovered new exit (range 18) 5206 | -4/Factory | Entered Extension 5256 | -4/Extension | Rescued A7 5702 | -4/Extension | Spotted B-86 Titan 5707 | -4/Extension | Spotted B-86 Titan 5807 | -4/Extension | Discovered new exit (range 10) 5807 | -4/Extension | Discovered new exit (range 6) 5810 | -4/Extension | Identified exit to Cetus 5812 | -4/Extension | Identified exit to Research 5858 | -4/Extension | Entered Cetus 5858 | -4/Cetus | Accompanied by 4 allies (A7) 5862 | -4/Cetus | Spotted Cetus Guard 5863 | -4/Cetus | Acquired a Cetus Manufacturing Module code from A7 5863 | -4/Cetus | Spotted Cetus Guard 5869 | -4/Cetus | Spotted Cetus Guard 5869 | -4/Cetus | Spotted Cetus Guard 5881 | -4/Cetus | Started Cetus Manufacturing Module 5888 | -4/Cetus | Discovered new exit (range 15) 5892 | -4/Cetus | Identified exit to Archives 5892 | -4/Cetus | Entered Archives 5900 | -4/Archives | Discovered new exit (range 15) 5904 | -4/Archives | Identified exit to Hub_04(d) 5904 | -4/Archives | Entered Hub_04(d) 5924 | -4/Hub_04(d) | Network Hub disabled 5927 | -4/Hub_04(d) | Self-destructed Last Messages --------------- 05917_ K-01 Serf collects debris. 05924_ ALERT: Network intrusion management efficiency reduced by 20%. Dispatching hub defense squads. All non-combat units evacuate. 05924_ FORBIDDEN NOTICE: gridsagegames.com/cogmind/events /forbiddenlore/L6-cy1SM80rA8/L6-cy1SM80rA8.html. 05924_ Network Hub explodes. 05924_ Destroyed Wheel. 05924_ Med. Matter Pod fried. 05924_ K-01 Serf destroyed. 05924_ Control Node disabled. 05924_ Emergency Access malfunctions. 05924_ Destroyed Welding Torch. 05924_ Structural Scanner fried. 05924_ Wheel fried. 05924_ Lgt. Ion Engine fried. 05924_ U-05 Engineer destroyed. 05925_ ALERT: Hostile activity reported, dispatching reinforcements to area. 05925_ ALERT: Construction progress impeded, dispatching reinforcements to local area. Map ----- +----------------------------------------------------+ | | | | | | | | | | | | | | | | | | | ?????????????????????????????????????????????????? | | ?????????????????????????????????????????????????? | | ?????????????????????????????????????????????????? | | ?????????????????????????????????????????????????? | | ?????????????????????????????????????????????????? | | ?????????????###????###??????????????????????????? | | ?????????????# """" #??????????????????????????? | | ?????????????# """" ###############????????????? | | ?????????????# """" ## # ???????????? | | ?????????????# """" # ; ??????????? | | ????????????## # ;;;;;;;;;;;;; ??????????? | | ???????????? / # ; ;; ??????????? | | ?????????????# # ; ;; ?????????? | | ?????????????# # ; % ;; ?????????? | | ?????????????# ; ; ;;;;;;????????? | | ??????#########;;;;;;;;;; ; % ????????? | | ??????# ;; ;@ ; ????????? | | ??????# " ;; ;;;;; ;;;;;;#####???? | | ??????# ;A ## ; ; ; ##???? | | ??????# """ ## ## ; ; # """"# ???? | | ??????#% ## ## ; ; # """"# ???? | | ??????# """ ## ## ; ; # """"# ???? | | ??????# ## ### ;;;;;;;;;;;; # """"# ???? | | ??????# """ ]## #?# # # ???? | | ??????#! ## #?## # """"# ???? | | ??????#####+##### ################## """"# ???? | | ??????# k # """"# ???? | | ???? # """"# ???? | | ??????# # # ???? | | ??????# ########### ######+##+###### # ???? | | ??????# ????????????# #???# ## # ???? | | ????????????????????# #???# """"" ###?##### ???? | | ???????????????###### #???# ""T"" #?# #???# ???? | | ??????????????? ## ##### =#?# #???# ???? | | ??????????????? ## + #?# #???# ???? | | ??????????????? ## ##### """ """ #?# ##### ???? | | ??????????????? ## #???# #?# ? ???? | | ???????????????" ## #???# #?####### ???? | | ???????????????" ## #???#+#########???????# ???? | | ???????????????" ## ##### #############???# ???? | | ???????????????" ## #???##???? | +----------------------------------------------------+ Best States ------------- Heat Dissipation 62 Energy Generation 19 Energy Capacity 315 Matter Stores 300 Matter Capacity 300 Sight Range 16 Robot Scan Range 16 Terrain Scan Density 10 Armor Coverage 450 Core Shielding 20 Evasion (%) 65 Recoil Reduction 4 Offensive Hacking 30 Defensive Hacking 10 Item Schematics ----------------- Hacking Suite | -8/Materials | Scanalyzed Robot Schematics ------------------ None Fabricated ------------ Nuclear Pulse Array | x2 | -6/Factory | Preloaded Hacking Suite | x1 | -6/Factory Hacking Suite | x1 | -6/Factory Alien Tech Used ----------------- None Achievements -------------- None Challenges ------------ None Game ------ Seed DamperRemoteExoskeleton Manual? 0 Play Time 00:57:17 Cumulative 1775.5 hours Start 2023.08.31 @ 15:25:40 End 2023.08.31 @ 17:30:12 Sessions 1 Manual Loads 0 Difficulty Rogue Special Mode Halloween2020/ForbiddenLore Game No. 625 Rogue 625 Adventurer 0 Explorer 0 Win Type - Total 138 Types 28/13/62/7/1/2/23/1/1 Lore% 96 Gallery% 96 Achievement% 88 Wizard Run 0 Options --------- ASCII 0 Keyboard 0 Movement Numpad Keybinds 0 Fullscreen 2 Font 18/SmallcapsGlow Map View 76x50 Tactical HUD 1 Map Filters NONE Filters NONE Steam 1 RUN: c3a5bc60-de93-41ab-aa82-cdd6e70b85a7